Cogmind - Beta 17 @@@ ROGUE MODE // 2026.07.12 @ 19:39:21 Player: Suffixing Result: Destroyed by S-10 Pest with Light Assault Rifle Performance ------------- Evolutions (0) 0 Regions Visited (2) 400 Robots Destroyed (15) 75 Value Destroyed (465) 465 Prototype IDs (0) 0 Alien Tech Used (0) 0 Bonus (0) 0 TOTAL SCORE: 940 Bonus ------- None Cogmind --------- Core Integrity 0/250 Matter 270/300 Energy 141/160 System Corruption 0% Temperature Cool (0) Movement Treading (320) Ox2 Location -10/Mines Parts ------- > --- POWER (1) -------- Light Nuclear Core > --- PROPULSION (2) --- Light Treads Light Treads > --- UTILITY (2) ------ Heat Sink Huge Storage Unit > --- WEAPON (2) ------- EM Pulse Gun EM Pulse Gun > --- INVENTORY (25) --- Ion Engine Light Deuterium Engine Light Nuclear Core Light Treads Light Treads Armored Wheel Armored Wheel Armored Wheel Armored Wheel Heat Sink Large Storage Unit Particle Gun Peak State ------------ > --- POWER ------------ Light Nuclear Core > --- PROPULSION ------- Light Treads Light Treads > --- UTILITY ---------- Heat Sink Small Storage Unit > --- WEAPON ----------- Particle Gun Particle Gun > --- INVENTORY -------- Ion Engine Light Ion Engine Light Nuclear Core Light Treads Light Treads Wheel Compact Wheel Small Laser [Rating: 12] Favorites ----------- Power Light Nuclear Core Engine Light Ion Engine Power Core Light Nuclear Core Propulsion Light Treads Treads Light Treads Leg Aluminum Leg Utility Heat Sink Device Heat Sink Storage Huge Storage Unit Weapon EM Pulse Gun Energy Gun EM Pulse Gun Build | -11 -10 -10 ------- Run | Yrd Mat Min Slots Evolved . | . . . Power . | . . . Propulsion . | . . . Utility . | . . . Weapon . | . . . Parts Attached 18 | 3 11 4 Power 2 | . 2 . Engine . | . . . Core 2 | . 2 . Reactor . | . . . Propulsion 4 | 2 1 1 Treads 4 | 2 1 1 Leg . | . . . Wheel . | . . . Hover . | . . . Flight . | . . . Utility 4 | . 4 . Device 2 | . 2 . Storage 2 | . 2 . Processor . | . . . Hackware . | . . . Protection . | . . . Artifact . | . . . Weapon 8 | 1 4 3 Energy Gun 8 | 1 4 3 Energy Cannon . | . . . Ballistic Gun . | . . . Ballistic Cannon . | . . . Launcher . | . . . Special Weapon . | . . . Impact Weapon . | . . . Slashing Weapon . | . . . Piercing Weapon . | . . . Special Melee Weapon . | . . . Unidentified Prototypes . | . . . Parts Lost 6 | . 2 4 Power . | . . . Propulsion 1 | . . 1 Utility 1 | . 1 . Weapon 4 | . 1 3 Highest Loss Streak 4 | . 1 4 To Critical Strikes . | . . . Average Backups 11 | 6 10 14 Power 2 | 1 2 2 Propulsion 5 | 4 5 6 Utility 1 | . . 2 Weapon 2 | 1 1 3 Tool/Special . | . . . Unused Backups 14 | . 6 8 Power 3 | . 2 1 Propulsion 6 | . . 6 Utility 3 | . 2 1 Weapon 2 | . 2 . Tool/Special . | . . . Average Slot Usage (%) 98 | . 98 99 Engine 1 | . 1 . Core 12 | . 12 14 Treads 27 | . 28 27 Device 12 | . 12 14 Storage 14 | . 14 14 Energy Gun 28 | . 28 28 Peak Build Rating 12 | 6 12 11 Average Rating 10 | 6 10 10 On Entrance 7 | 6 6 11 Avg Prop Armor Cover (%) . | . . . Naked Turns . | . . . Heaviest Build 90 | 10 90 90 Greatest Support 40 | 40 40 40 Greatest Overweight (x) 2 | . 2 2 Average Overweight (x) . | . . 2 Largest Inventory Capacity 25 | 8 25 25 Average Capacity 17 | 8 16 25 Most Carried 16 | 6 15 16 Average Carried 11 | 4 10 14 Final Capacity 25 | 8 25 25 Final Carried 15 | 3 15 12 Class Distribution -------------------- 68% | Mutant 31% | Scavenger-Mutant Dominant Class ---------------- Mutant | -10/Materials Mutant | -10/Mines Resources | -11 -10 -10 ----------- Run | Yrd Mat Min Matter Collected 348 | 181 167 . Remotely . | . . . Salvage Created 601 | . 538 63 Parts 31 | . 25 6 Haulers Intercepted 2 | . 2 . Recyclers Shooed . | . . . Parts Field Recycled . | . . . Retrieved Matter . | . . . Parts Self-Destructed . | . . . Prevented . | . . . Parts Restored . | . . . Kills | -11 -10 -10 ------- Run | Yrd Mat Min Combat Hostiles Destroyed 12 | . 10 2 Guns 12 | . 10 2 Classes Destroyed 6 | . 3 3 Worker 1 | . 1 . Builder 1 | . . 1 Hauler 2 | . 2 . Grunt 10 | . 10 . Demolisher 1 | . . 1 Assembled 1 | . . 1 Best Kill Streak 3 | . 3 2 Combat Bots Only 3 | . 3 1 Max Kills in Single Turn 1 | . 1 1 Gunslinging . | . . . Exploded . | . . . Melee . | . . . Uniques/NPCs Destroyed . | . . . Combat | -11 -10 -10 -------- Run | Yrd Mat Min Hostile Shots Fired 75 | . 61 14 Missed 12 | . 10 2 Hits 63 | . 51 12 Melee 7 | . . 7 Projectile 56 | . 51 5 AOE 2 | . . 2 Critical Strikes 1 | . 1 . Damage Taken 999 | . 636 363 Core 253 | . 176 77 Absorbed by Shields . | . . . Core Remaining (%) 100 | 100 . . Volleys Fired 60 | . 49 11 Largest 2 | . 2 2 Hottest 130 | . 130 80 Shots Fired 118 | . 97 21 Gun 118 | . 97 21 Cannon . | . . . Launcher . | . . . Special . | . . . Kinetic . | . . . Thermal 97 | . 97 . Explosive . | . . . Electromagnetic 21 | . . 21 Robot Hit Streak 8 | . 8 3 Robot Miss Streak 3 | . 3 2 Penetration Max . | . . . Secondary Targets 1 | . 1 . Max Gunslinging Chain 1 | . 1 . Shots Hit Robots 71 | . 61 10 Core Hits 31 | . 26 5 Critical Kills . | . . . Critical Parts Destroyed . | . . . Critical Strikes 5 | . 5 . Burn 5 | . 5 . Melee Attacks . | . . . Impact . | . . . Slashing . | . . . Piercing . | . . . Sneak Attacks . | . . . Combat Hostiles . | . . . Follow-up Attacks . | . . . Damage Inflicted 1054 | . 916 138 Guns 1038 | . 900 138 Cannons . | . . . Explosions . | . . . Melee . | . . . Ramming 16 | . 16 . Kinetic . | . . . Thermal 900 | . 900 . Explosive . | . . . Electromagnetic 138 | . . 138 Impact . | . . . Slashing . | . . . Piercing . | . . . Highest Corruption . | . . . Average Corruption . | . . . Corruption Purged . | . . . Corruption Blocked . | . . . Overload Shots . | . . . Overflow Damage . | . . . Projectiles . | . . . Explosions . | . . . Melee . | . . . Knockbacks 1 | . 1 . Impact 1 | . 1 . Kinetic . | . . . Secondary . | . . . Self-Inflicted Damage . | . . . Shots . | . . . Rammed 4 | . 3 1 Targets Rammed 4 | . 3 1 Kicked . | . . . Crushed . | . . . Highest Temperature 436 | . 436 . Average Temperature 174 | . 174 . Received Heat Transfer 372 | . 372 . Effects 7 | . 7 . Shutdowns 1 | . 1 . Energy Bleed 2 | . 2 . Interference 4 | . 4 . Siege Activations . | . . . Martial Activations . | . . . Shielding Activations . | . . . Robots Disrupted . | . . . Combat Hostiles . | . . . Robots Corrupted . | . . . Combat Hostiles . | . . . Parts Fried . | . . . Impact Corruptions . | . . . Robots Melted . | . . . Combat Hostiles . | . . . Parts Melted 6 | . 6 . Heat Transferred 2448 | . 2448 . Parts Sabotaged . | . . . Parts Stolen . | . . . Parts Stripped . | . . . Power Chain Reactions . | . . . Alert | -11 -10 -10 ------- Run | Yrd Mat Min Maximum Alert Level . | . . . Low Security (%) 100 | 100 100 100 Level 1 . | . . . Level 2 . | . . . Level 3 . | . . . Level 4 . | . . . Level 5 . | . . . High Security . | . . . Max Security . | . . . Peak Influence 100 | . 100 35 Initial . | . . . Average 10 | . 11 3 Influence Increases 334 | . 294 40 Destroy 0b10 Robot/C 220 | . 200 20 Destroy 0b10 Robot/NC 20 | . 15 5 Destroy Leader 44 | . 44 . Successful Hack 4 | . 4 . Disable Machine 15 | . . 15 Destroy Structure 1 | . 1 . Lose Combat Pursuer 30 | . 30 . Influence Decreases 334 | . 294 40 Time Decay 299 | . 274 25 Lost Part 35 | . 20 15 Squads Dispatched . | . . . Investigation . | . . . Extermination . | . . . Reinforcement . | . . . Assault . | . . . Garrison . | . . . Intercept . | . . . Searches Triggered . | . . . Construction Impeded . | . . . Haulers Reinforced . | . . . Active Scanning Responses . | . . . Cargo Convoy Interrupts . | . . . Stealth | -11 -10 -10 --------- Run | Yrd Mat Min Distress Signals . | . . . Communications Jammed . | . . . Distress Signals . | . . . Times Spotted 31 | . 28 3 Peak Tracking Total 4 | . 4 1 Tactical Retreats 2 | . 2 . Traps | -11 -10 -10 ------- Run | Yrd Mat Min Traps Triggered 1 | . 1 . Indirectly . | . . . Trap Hack Attempts . | . . . Triggered . | . . . Disarmed . | . . . Reprogrammed . | . . . Reused . | . . . Traps Extracted . | . . . Installed . | . . . Triggered . | . . . Machines | -11 -10 -10 ---------- Run | Yrd Mat Min Machines Disabled 1 | . . 1 Max in Single Turn 1 | . . 1 Machines Repaired . | . . . Machines Dismantled . | . . . Machines Sabotaged . | . . . Overloaded Fab Kills . | . . . Hacking | -11 -10 -10 --------- Run | Yrd Mat Min Machines Accessed 7 | . 7 . Terminals 7 | . 7 . Fabricators . | . . . Repair Stations . | . . . Recycling Units . | . . . Scanalyzers . | . . . Garrison Access . | . . . Total Hacks 15 | . 15 . Successful 8 | . 8 . Failed 7 | . 7 . Catastrophic 2 | . 2 . Database Lockouts . | . . . Manual 13 | . 13 . Terminals 15 | . 15 . Fabricators . | . . . Repair Stations . | . . . Recycling Units . | . . . Scanalyzers . | . . . Garrison Access . | . . . Terminal Hacks 1 | . 1 . Locate Traps 1 | . 1 . Fabricator Hacks . | . . . Repair Station Hacks . | . . . Recycling Unit Hacks . | . . . Scanalyzer . | . . . Garrison Access Hacks . | . . . Unauthorized Hacks 7 | . 7 . Terminals 7 | . 7 . Assimilate 2 | . 2 . Skim 5 | . 5 . Fabricators . | . . . Repair Stations . | . . . Recycling Units . | . . . Scanalyzers . | . . . Garrison Access . | . . . Data Cores Recovered . | . . . Used . | . . . Hacking Detections 4 | . 4 . Full Trace Events . | . . . Feedback Events . | . . . Feedback Blocked . | . . . Robot Schematics Acquired . | . . . Robots Built . | . . . Authchips . | . . . Time . | . . . Total Robot Build Rating . | . . . Part Schematics Acquired . | . . . Parts Built . | . . . Authchips . | . . . Time . | . . . Total Part Build Rating . | . . . Part Studies Acquired . | . . . Parts Repaired . | . . . Time . | . . . Parts Recycled . | . . . Recycled Matter . | . . . Retrieved Matter . | . . . Retrieved Components . | . . . Parts Scanalyzed . | . . . Part Schematics Acquired . | . . . Parts Damaged . | . . . Bothacking | -11 -10 -10 ------------ Run | Yrd Mat Min Used RIF Installer . | . . . Robots Hacked . | . . . Non-combat . | . . . Combat . | . . . Robot Hacks Applied . | . . . Relay Couplers Released . | . . . Fabnet Peak Effective % . | . . . Robots Rewired . | . . . Allies Hacked . | . . . Hacks Repelled . | . . . Allies | -11 -10 -10 -------- Run | Yrd Mat Min Total Allies 1 | . 1 . Largest Group 1 | . 1 . Highest-Rated Group 10 | . 10 . Highest-Rated Ally 10 | . 10 . Total Orders . | . . . Ally Attacks . | . . . Total Damage . | . . . Kills . | . . . Allies Corrupted . | . . . Allies Melted . | . . . Intel | -11 -10 -10 ------- Run | Yrd Mat Min Active Infowar (turns) . | . . . Robot Analysis Total . | . . . Derelict Logs Recovered . | . . . Drone Launches . | . . . Drone Recoveries . | . . . Exploration | -11 -10 -10 ------------- Run | Yrd Mat Min Turns Passed 2307 | 8 1896 403 Spaces Moved 927 | 2 811 114 Core . | . . . Treads 927 | 2 811 114 Legs . | . . . Wheels . | . . . Hover . | . . . Flight . | . . . Fastest Speed 160 | 160 160 320 Average Speed 219 | 160 205 320 Slowest Speed 320 | 160 320 320 Overloaded Moves . | . . . Propulsion Burnouts . | . . . Robots Hopped . | . . . Potential Cave-ins . | . . . Cave-ins Triggered . | . . . Exploration Rate (%) 43 | 2 96 31 Regions Visited 2 Branch Regions 1 Pre-discovered Areas 2 | . 2 . Known Exits Taken . | . . . Unknown Exits Taken 2 | 1 1 . Scrap Searched . | . . . Spaces Dug . | . . . Terrain Destroyed . | . . . Melee . | . . . Projectile . | . . . AOE . | . . . Terrain Rammed . | . . . Walls Destroyed . | . . . Machines Disabled . | . . . Actions | -11 -10 -10 --------- Run | Yrd Mat Min Total 1084 | 7 946 131 Wait 42 | . 42 . Move 925 | 1 810 114 Hop . | . . . Pick Up 22 | . 21 1 Fast Attach . | . . . Attach 7 | . 3 4 Detach . | . . . Swap 13 | 3 10 . Drop 11 | 3 8 . Fire 60 | . 49 11 Melee . | . . . Ram . | . . . Kick . | . . . Crush 4 | . 3 1 Escape Stasis . | . . . Rewire . | . . . Trap . | . . . Miscellaneous . | . . . Route ------- -11/Scrapyard -10/Materials (discovered 5 exits: *Mat x3 / [*Min] / Sub) -10/Mines History --------- Turn | Location | Event 7 | -11/Scrapyard | Discovered new exit (range 1) 9 | -11/Scrapyard | Entered Materials 520 | -10/Materials | Identified exit to Materials 522 | -10/Materials | Build established: Scavenger-Mutant 547 | -10/Materials | Learned location of 2 exits from Subcaves 579 | -10/Materials | Learned location of Mines (-8) 592 | -10/Materials | Identified exit to Subcaves 731 | -10/Materials | Discovered new exit (range 9) 767 | -10/Materials | Discovered exit to Materials (range 4) 916 | -10/Materials | Core integrity fell below 50% 1237 | -10/Materials | Build established: Mutant 1905 | -10/Materials | Entered Mines 2124 | -10/Mines | Assembled infested the area 2210 | -10/Mines | Core integrity fell below 20% 2308 | -10/Mines | Lost 4 parts (1n3w) 2308 | -10/Mines | Destroyed by S-10 Pest with Light Assault Rifle Last Messages --------------- 01964_ K-01 Serf cleans the Plasma Injector. 01968_ K-01 Serf collects debris. 01969_ K-01 Serf cleans the Plasma Injector. 02117_ Slammed into K-01 Serf. 02124_ ALERT: Infestation in the mines, dispatching Demolisher response squad. 02150_ T-07 Excavator is excavating. 02209_ D-53 Grenadier destroyed. 02209_ Core Extractor disabled. 02222_ Acquired Lgt. Deuterium Engine. 02240_ The unstable cave ceiling collapses. 02247_ as-67833 sneak attacks. 02262_ Lgt. Treads destroyed. 02265_ U-05 Engineer lays Concrete. 02267_ EM Pulse Gun destroyed. 02267_ U-05 Engineer lays Concrete. 02270_ U-05 Engineer destroyed. 02273_ Destroyed Asb. Hover Unit. 02275_ EM Pulse Gun destroyed. 02278_ as-67833 destroyed. Map ----- +----------------------------------------------------+ | | | | | | | | | | | | | | | | | | | | | | | ?????????????????????????????? | | ?????????????????????????????? | | ???####??????????????????????? | | ??## ##????????????????????? | | ??# #????????????????????? | | ??# ##???????????????????? | | ??# ###?????????????????? | | ?## ##???????####?????? | | ?# #??????## ##????? | | ?# #??????# #????? | | ?# #???????# ###### | | ?# #???????# # # | | ?# ####????# ## #? | | ??# ## ###?## #? | | ??# @ ### #? | | ??# ! ##? | | ??# =%! ### ## | | ??# "" % ! ##?### # | | ??## " #????## | | ???# """ #?????# | | ???# =% # # ##?????## | | ???# ## #### ##???????## | | ???# #######??# #????????## | | ???# #????????# #????????# | | ???# #????????# #????????# | | ???# ????????# #????????## | | ???# s ???????? #?????????## | | ???# ????????##???????????? | | ???? ??????????????????????? | | ???? ??????????????????????? | | ?????????????????????????????? | | ?????????????????????????????? | | ?????????????????????????????? | | ?????????????????????????????? | | ?????????????????????????????? | | ?????????????????????????????? | | ?????????????????????????????? | | ?????????????????????????????? | | ?????????????????????????????? | +----------------------------------------------------+ Best States ------------- Heat Dissipation 35 Energy Generation 14 Energy Capacity 160 Matter Stores 300 Matter Capacity 300 Sight Range 16 Terrain Scan Density 10 Evasion (%) 40 Recoil Reduction 2 Item Schematics ----------------- None Robot Schematics ------------------ None Fabricated ------------ Nothing Repaired ---------- Nothing Studied --------- None Alien Tech Used ----------------- None Achievements -------------- None Challenges ------------ None Game ------ Seed MomentumThunderMatterbank Manual? 0 Play Time 00:11:44 Cumulative 47.7 hours Start 2026.07.12 @ 19:28:11 End 2026.07.12 @ 19:39:21 Sessions 1 Manual Loads 0 Difficulty Rogue Special Mode None Game No. 193 Rogue 149 Adventurer 44 Explorer 0 Win Type - Total 1 Types 1/0/0/0/0/0/0/0/0/0 Lore% 57 Gallery% 38 Achievement% 28 Wizard Run 0 Options --------- Layout 1 ASCII 0 Keyboard 0 Movement Numpad Keybinds 0 Fullscreen 1 Font 24/Smallcaps Map View 50x35 Zoom Use 0% Tactical HUD 1 Map Filters NONE Filters NONE Steam 1 RUN: a28401b0-be1e-4a2b-a7df-251a94be09d3